fUST/lending_fUST_20250927
["ID","MTS","AMOUNT","RATE_DAILY","PERIOD"]
[387857773,1758930706403,-480.0,0.00047397,120]
[387857774,1758930706412,-480.0,0.00047397,120]
[387857775,1758930706422,-480.0,0.00047397,120]
[387857776,1758930706432,-480.0,0.00047397,120]
[387857777,1758930706442,-480.0,0.00047397,120]
[387857778,1758930706452,-1530.53,0.00047397,120]
[387857779,1758930706462,-480.0,0.00047397,120]
[387857780,1758930706471,-698.24,0.00047397,120]
[387857781,1758930706481,-487.33,0.00047397,120]
[387857782,1758930706490,-480.0,0.00047397,120]
[387857783,1758930706500,-480.0,0.00047397,120]
[387857784,1758930706509,-480.0,0.00047397,120]
[387857785,1758930706519,-480.0,0.00047397,120]
[387857786,1758930706529,-2777.42,0.00047397,120]
[387857787,1758930706539,-993.47,0.00047397,120]
[387857788,1758930706548,-480.0,0.00047397,120]
[387857789,1758930706558,-480.0,0.00047397,120]
[387857790,1758930706568,-480.0,0.00047397,120]
[387857791,1758930706578,-480.0,0.00047397,120]
[387857792,1758930706587,-631.56,0.00047397,120]
[387857793,1758930706597,-1595.64,0.00047397,120]
[387857794,1758930706607,-1096.6,0.00047397,120]
[387857795,1758930706617,-608.43,0.00047397,120]
[387857796,1758930706627,-480.0,0.00047397,120]
[387857797,1758930706637,-480.0,0.00047397,120]
[387857798,1758930706647,-1419.73,0.00047397,120]
[387857799,1758930706657,-765.39,0.00047397,120]
[387857800,1758930706668,-480.0,0.00047397,120]
[387857801,1758930706683,-623.21,0.00047397,120]
[387857802,1758930706693,-627.77,0.00047397,120]
[387857803,1758930706702,-486.32135893,0.00047397,120]
[387857804,1758930706712,-480.0,0.00047397,120]
[387857805,1758930706723,-480.0,0.00047397,120]
[387857806,1758930706733,-480.0,0.00047397,120]
[387857807,1758930706744,-565.15,0.00047397,120]
[387857808,1758930706753,-480.0,0.00047397,120]
[387857809,1758930706763,-1372.39,0.00047397,120]
[387857810,1758930706772,-497.96,0.00047397,120]
[387857811,1758930706782,-675.41,0.00047397,120]
[387857812,1758930706792,-480.0,0.00047397,120]
[387857813,1758930706953,-480.0,0.00047397,120]
[387857814,1758930706969,-480.0,0.00047397,120]
[387857815,1758930706979,-480.0,0.00047397,120]
[387857816,1758930706988,-480.0,0.00047397,120]
[387857817,1758930706998,-725.35,0.00047397,120]
[387857818,1758930707008,-488.20066705,0.00047397,120]
[387857819,1758930707017,-480.0,0.00047397,7]
[387857820,1758930707027,-480.0,0.00047397,120]
[387857821,1758930707036,-480.0,0.00047397,120]
[387857822,1758930707046,-803.64,0.00047397,120]
[387857823,1758930707055,-480.0,0.00047397,120]
[387857824,1758930707064,-480.0,0.00047397,120]
[387857825,1758930707073,-1127.71,0.00047397,120]
[387857826,1758930707083,-1281.76,0.00047397,120]
[387857827,1758930707092,-627.47320853,0.00047397,120]
[387857828,1758930707101,-627.64,0.00047397,120]
[387857829,1758930707111,-480.0,0.00047397,120]
[387857830,1758930707121,-581.19756522,0.00047397,120]
[387857831,1758930707131,-1517.89,0.00047397,120]
[387857832,1758930707140,-3303.18,0.00047397,120]
[387857833,1758930707149,-480.0,0.00047397,120]
[387857834,1758930707159,-480.0,0.00047397,120]
[387857835,1758930707168,-543.89,0.00047397,120]
[387857836,1758930707178,-480.0,0.00047397,120]
[387857837,1758930707187,-480.0,0.00047397,120]
[387857838,1758930707196,-1352.86,0.00047397,120]
[387857839,1758930707206,-608.48933301,0.00047397,120]
[387857840,1758930707215,-480.0,0.00047397,120]
[387857841,1758930707224,-500.0,0.00047397,120]
[387857842,1758930707233,-480.0,0.00047397,120]
[387857843,1758930707243,-480.0,0.00047397,120]
[387857844,1758930707253,-574.04,0.00047397,120]
[387857845,1758930707262,-480.0,0.00047397,120]
[387857846,1758930707271,-480.0,0.00047397,120]
[387857847,1758930707280,-480.0,0.00047397,120]
[387857848,1758930707289,-480.0,0.00047397,120]
[387857849,1758930707299,-823.76,0.00047397,120]
[387857850,1758930707308,-480.0,0.00047397,120]
[387857851,1758930707318,-480.0,0.00047397,120]
[387857852,1758930707327,-4361.36,0.00047397,120]
[387857853,1758930707337,-480.0,0.00047397,120]
[387857854,1758930707346,-480.0,0.00047397,120]
[387857855,1758930707356,-2337.28,0.00047397,120]
[387857856,1758930707366,-618.58,0.00047397,120]
[387857857,1758930707375,-1619.76,0.00047397,120]
[387857858,1758930707384,-1719.52,0.00047397,120]
[387857859,1758930707394,-495.32300962,0.00047397,120]
[387857860,1758930707403,-749.36,0.00047397,120]
[387857861,1758930707412,-480.0,0.00047397,120]
[387857862,1758930707423,-480.0,0.00047397,120]
[387857863,1758930707432,-831.55,0.00047397,120]
[387857864,1758930707442,-1816.63,0.00047397,120]
[387857865,1758930707451,-480.0,0.00047397,120]
[387857866,1758930707461,-480.0,0.00047397,120]
[387857867,1758930707470,-480.0,0.00047397,120]
[387857868,1758930707481,-480.0,0.00047397,120]
[387857869,1758930707490,-1056.72,0.00047397,120]
[387857870,1758930707499,-480.0,0.00047397,120]
[387857871,1758930707509,-480.0,0.00047397,120]
[387857872,1758930707518,-480.0,0.00047397,120]
[387857873,1758930707527,-1861.19,0.00047397,120]
[387857874,1758930707537,-480.0,0.00047397,120]
[387857875,1758930707546,-480.0,0.00047397,120]
[387857876,1758930707556,-480.0,0.00047397,120]
[387857877,1758930707565,-642.64,0.00047397,120]
[387857878,1758930707574,-480.0,0.00047397,120]
[387857879,1758930707583,-3009.0,0.00047397,120]
[387857880,1758930707593,-480.0,0.00047397,120]
[387857881,1758930707602,-480.0,0.00047397,120]
[387857882,1758930707611,-500.0,0.00047397,120]
[387857883,1758930707621,-480.0,0.00047397,120]
[387857884,1758930707629,-480.0,0.00047397,120]
[387857885,1758930707638,-2268.32,0.00047397,120]
[387857886,1758930707648,-839.4,0.00047397,120]
[387857887,1758930707657,-486.04,0.00047397,120]
[387857888,1758930707667,-751.19,0.00047397,120]
[387857889,1758930707679,-480.0,0.00047397,120]
[387857890,1758930707688,-925.57,0.00047397,120]
[387857891,1758930707697,-489.10656978,0.00047397,120]
[387857892,1758930707706,-1783.09,0.00047397,120]
[387857893,1758930707716,-5759.01,0.00047397,120]
[387857894,1758930707726,-480.0,0.00047397,120]
[387857895,1758930707735,-482.22443153,0.00047397,120]
[387857896,1758930707746,-480.0,0.00047397,120]
[387857897,1758930707755,-480.0,0.00047397,120]
[387857898,1758930707764,-530.43,0.00047397,120]
[387857899,1758930707773,-480.0,0.00047397,120]
[387857900,1758930707784,-480.0,0.00047397,120]
[387857901,1758930707793,-610.69,0.00047397,120]
[387857902,1758930707802,-1354.62,0.00047397,120]
[387857903,1758930707811,-480.0,0.00047397,120]
[387857904,1758930707820,-480.0,0.00047397,120]
[387857905,1758930707829,-480.0,0.00047397,120]
[387857906,1758930707840,-1055.5,0.00047397,120]
[387857907,1758930707849,-486.72423235,0.00047397,120]
[387857908,1758930707859,-480.0,0.00047397,120]
[387857909,1758930707868,-5949.84,0.00047397,3]
[387857910,1758930707877,-13857.49,0.00047397,120]
[387857911,1758930707886,-480.0,0.00047397,120]
[387857912,1758930707895,-480.0,0.00047397,120]
[387857913,1758930707904,-480.0,0.00047397,120]
[387857914,1758930707913,-688.13,0.00047397,120]
[387857915,1758930707922,-480.0,0.00047397,120]
[387857916,1758930707931,-520.46,0.00047397,120]
[387857917,1758930707940,-582.06,0.00047397,120]
[387857918,1758930707949,-480.0,0.00047397,120]
[387857919,1758930707958,-2713.39,0.00047397,120]
[387857920,1758930707967,-480.0,0.00047397,120]
[387857921,1758930707975,-1323.12,0.00047397,120]
[387857922,1758930707985,-4137.77,0.00047397,120]
[387857923,1758930707995,-480.0,0.00047397,120]
[387857924,1758930708004,-491.57,0.00047397,120]
[387857925,1758930708013,-1013.67,0.00047397,120]
[387857926,1758930708023,-480.0,0.00047397,120]
[387857927,1758930708032,-485.08363277,0.00047397,120]
[387857928,1758930708041,-5978.0,0.00047397,120]
[387857929,1758930708050,-1604.73,0.00047397,120]
[387857930,1758930708059,-480.0,0.00047397,120]
[387857931,1758930708068,-480.0,0.00047397,120]
[387857932,1758930708077,-1322.87,0.00047397,120]
[387857933,1758930708087,-485.50074814,0.00047397,120]
[387857934,1758930708096,-480.0,0.00047397,120]
[387857935,1758930708106,-856.38,0.00047397,120]
[387857936,1758930708115,-480.0,0.00047397,120]
[387857937,1758930708124,-905.9,0.00047397,120]
[387857938,1758930708134,-480.0,0.00047397,120]
[387857939,1758930708143,-1798.95,0.00047397,120]
[387857940,1758930708153,-277.18040203,0.00047397,120]
[387857941,1758930708162,-424.7474055,0.00047397,120]
[387857942,1758930708172,-480.0,0.00047397,120]
[387857943,1758930708181,-529.3,0.00047397,120]
[387857944,1758930708191,-480.0,0.00047397,120]
[387857945,1758930708202,-480.0,0.00047397,120]
[387857946,1758930708214,-512.77,0.00047397,120]
[387857947,1758930708224,-711.52,0.00047397,120]
[387857948,1758930708233,-762.04,0.00047397,120]
[387857949,1758930708242,-1000.0,0.00047397,120]
[387857950,1758930708251,-1024.21,0.00047397,120]
[387857951,1758930708261,-480.0,0.00047397,120]
[387857952,1758930708271,-480.0,0.00047397,120]
[387857953,1758930708280,-480.0,0.00047397,120]
[387857954,1758930708290,-742.5,0.00047397,120]
[387857955,1758930708299,-24445.84,0.00047397,120]
[387857956,1758930708308,-1023.2,0.00047397,120]
[387857957,1758930708317,-480.0,0.00047397,120]
[387857958,1758930708327,-882.42,0.00047397,120]
[387857959,1758930708336,-480.0,0.00047397,120]
[387857960,1758930708345,-480.0,0.00047397,120]
[387857961,1758930708354,-480.0,0.00047397,120]
[387857962,1758930708364,-480.0,0.00047397,120]
[387857963,1758930708373,-2297.6,0.00047397,120]
[387857964,1758930708382,-2345.73,0.00047397,120]
[387857965,1758930708392,-3576.08,0.00047397,120]
[387857966,1758930708401,-6250.23,0.00047397,120]
[387857967,1758930708410,-531.85481045,0.00047397,120]
[387857968,1758930708420,-5284.46,0.00047397,120]
[387857969,1758930708430,-480.0,0.00047397,120]
[387857970,1758930708439,-480.0,0.00047397,120]
[387857971,1758930708449,-1794.86,0.00047397,120]
[387857972,1758930708459,-601.27,0.00047397,120]
[387857973,1758930708469,-480.0,0.00047397,120]
[387857974,1758930708478,-480.0,0.00047397,120]
[387857975,1758930708488,-480.0,0.00047397,120]
[387857976,1758930708498,-6790.44,0.00047397,120]
[387857977,1758930708507,-480.0,0.00047397,120]
[387857978,1758930708516,-480.0,0.00047397,120]
[387857979,1758930708525,-12700.72,0.00047397,120]
[387857980,1758930708535,-4513.91,0.00047397,120]
[387857981,1758930708544,-3127.71,0.00047397,120]
[387857982,1758930708553,-480.0,0.00047397,120]
[387857983,1758930708562,-616.19,0.00047397,120]
[387857984,1758930708571,-485.26,0.00047397,120]
[387857985,1758930708581,-4636.29,0.00047397,120]
[387857986,1758930708590,-480.0,0.00047397,120]
[387857987,1758930708599,-480.0,0.00047397,120]
[387857988,1758930708608,-1238.7,0.00047397,120]
[387857989,1758930708618,-1841.32,0.00047397,120]
[387857990,1758930708627,-480.0,0.00047397,120]
[387857991,1758930708637,-1724.29,0.00047397,120]
[387857992,1758930708646,-480.0,0.00047397,120]
[387857993,1758930708655,-1256.07,0.00047397,120]
[387857994,1758930708664,-480.0,0.00047397,120]
[387857995,1758930708680,-480.0,0.00047397,120]
[387857996,1758930708690,-1111.04,0.00047397,120]
[387857997,1758930708699,-2425.11,0.00047397,120]
[387857998,1758930708709,-716.75,0.00047397,120]
[387857999,1758930708720,-480.0,0.00047397,120]
[387858000,1758930708730,-480.0,0.00047397,120]
[387858001,1758930708740,-491.01877197,0.00047397,120]
[387858002,1758930708750,-581.5,0.00047397,120]
[387858003,1758930708759,-480.0,0.00047397,120]
[387858004,1758930708768,-480.0,0.00047397,120]
[387858005,1758930708778,-6606.03,0.00047397,120]
[387858006,1758930708787,-480.0,0.00047397,120]
[387858007,1758930708796,-1442.05,0.00047397,120]
[387858008,1758930708805,-547.46,0.00047397,120]
[387858009,1758930708814,-571.19,0.00047397,120]
[387858010,1758930708823,-795.57,0.00047397,120]
[387858011,1758930708832,-480.0,0.00047397,120]
[387858012,1758930708841,-705.84,0.00047397,120]
[387858013,1758930708850,-480.0,0.00047397,120]
[387858014,1758930708860,-578.35040637,0.00047397,120]
[387858015,1758930708869,-480.0,0.00047397,120]
[387858016,1758930708878,-536.20825832,0.00047397,120]
[387858017,1758930708887,-797.55,0.00047397,120]
[387858018,1758930708896,-2495.47,0.00047397,120]
[387858019,1758930708905,-1440.69,0.00047397,120]
[387858020,1758930708914,-480.0,0.00047397,120]
[387858021,1758930708924,-1344.92,0.00047397,120]
[387858022,1758930708934,-671.91,0.00047397,120]
[387858023,1758930708943,-743.3,0.00047397,120]
[387858024,1758930708953,-480.0,0.00047397,120]
[387858025,1758930708963,-1952.62,0.00047397,120]
[387858026,1758930708972,-578.06527293,0.00047397,120]
[387858027,1758930708981,-400.0,0.00047397,30]
[387858028,1758930708990,-480.0,0.00047397,120]
[387858029,1758930709000,-578.91,0.00047397,120]
[387858030,1758930709009,-480.0,0.00047397,120]
[387858031,1758930709018,-480.0,0.00047397,120]
[387858032,1758930709027,-1312.29,0.00047397,120]
[387858033,1758930709037,-2323.54,0.00047397,120]
[387858034,1758930709046,-1456.57,0.00047397,120]
[387858035,1758930709056,-2753.73,0.00047397,120]
[387858036,1758930709066,-570.71,0.00047397,120]
[387858037,1758930709075,-4506.41,0.00047397,120]
[387858038,1758930709084,-480.0,0.00047397,120]
[387858039,1758930709094,-261.3728062,0.00047397,120]
[387858040,1758930709103,-2881.1,0.00047397,21]
[387858041,1758930709112,-2820.16,0.00047397,120]
[387858042,1758930709121,-536.62,0.00047397,120]
[387858043,1758930709131,-1867.94,0.00047397,120]
[387858044,1758930709140,-980.13,0.00047397,120]
[387858045,1758930709149,-888.34,0.00047397,120]
[387858046,1758930709159,-9374.26,0.00047397,120]
[387858047,1758930709168,-728.57,0.00047397,120]
[387858048,1758930709178,-480.0,0.00047397,120]
[387858049,1758930709188,-480.0,0.00047397,120]
[387858050,1758930709198,-578.7,0.00047397,120]
[387858051,1758930709207,-480.0,0.00047397,120]
[387858052,1758930709216,-480.0,0.00047397,120]
[387858053,1758930709226,-2171.98,0.00047397,120]
[387858054,1758930709236,-5982.08,0.00047397,120]
[387858055,1758930709245,-483.96809859,0.00047397,7]
[387858056,1758930709255,-480.0,0.00047397,120]
[387858057,1758930709264,-480.0,0.00047397,120]
[387858058,1758930709273,-1178.96,0.00047397,120]
[387858059,1758930709282,-603.24,0.00047397,120]
[387858060,1758930709292,-480.0,0.00047397,120]
[387858061,1758930709301,-12312.42,0.00047397,120]
[387858062,1758930709311,-3348.44,0.00047397,120]
[387858063,1758930709320,-491.16240298,0.00047397,120]
[387858064,1758930709330,-480.0,0.00047397,120]
[387858065,1758930709339,-480.0,0.00047397,120]
[387858066,1758930709348,-490.35350929,0.00047397,120]
[387858067,1758930709358,-450.34992921,0.00047397,120]
[387858068,1758930709368,-480.0,0.00047397,120]
[387858069,1758930709377,-761.77,0.00047397,120]
[387858070,1758930709386,-2476.81,0.00047397,120]
[387858071,1758930709396,-480.0,0.00047397,120]
[387858072,1758930709405,-847.29,0.00047397,120]
[387858073,1758930709415,-3391.21,0.00047397,120]
[387858074,1758930709424,-1309.23,0.00047397,120]
[387858075,1758930709434,-480.0,0.00047397,120]
[387858076,1758930709443,-480.0,0.00047397,120]
[387858077,1758930709453,-480.0,0.00047397,120]
[387858078,1758930709462,-645.27,0.00047397,120]
[387858079,1758930709472,-480.0,0.00047397,120]
[387858080,1758930709482,-480.0,0.00047397,120]
[387858081,1758930709491,-480.0,0.00047397,120]
[387858082,1758930709500,-480.0,0.00047397,120]
[387858083,1758930709509,-948.72,0.00047397,120]
[387858084,1758930709519,-480.0,0.00047397,120]
[387858085,1758930709528,-480.0,0.00047397,120]
[387858086,1758930709538,-633.74,0.00047397,120]
[387858087,1758930709547,-480.0,0.00047397,120]
[387858088,1758930709556,-3378.19,0.00047397,120]
[387858089,1758930709566,-2958.62,0.00047397,120]
[387858090,1758930709575,-13211.37,0.00047397,120]
[387858091,1758930709585,-480.0,0.00047397,120]
[387858092,1758930709594,-480.0,0.00047397,120]
[387858093,1758930709604,-4724.16,0.00047397,120]
[387858094,1758930709614,-480.0,0.00047397,120]
[387858095,1758930709624,-480.0,0.00047397,120]
[387858096,1758930709633,-480.0,0.00047397,20]
[387858097,1758930709643,-1029.55,0.00047397,30]
[387858098,1758930709652,-480.0,0.00047397,120]
[387858099,1758930709661,-480.0,0.00047397,120]
[387858100,1758930709672,-805.78,0.00047397,120]
[387858101,1758930709682,-480.0,0.00047397,120]
[387858102,1758930709691,-912.9,0.00047397,120]
[387858103,1758930709701,-480.0,0.00047397,120]
[387858104,1758930709712,-639.03,0.00047397,120]
[387858105,1758930709722,-480.0,0.00047397,120]
[387858106,1758930709732,-607.64,0.00047397,120]
[387858107,1758930709741,-575.68121899,0.00047397,120]
[387858108,1758930709752,-540.39,0.00047397,120]
[387858109,1758930709761,-480.0,0.00047397,120]
[387858110,1758930709770,-1971.41,0.00047397,120]
[387858111,1758930709779,-480.0,0.00047397,120]
[387858112,1758930709789,-480.0,0.00047397,120]
[387858113,1758930709959,-2584.13,0.00047397,120]
[387858114,1758930709969,-1397.29,0.00047397,120]
[387858115,1758930709979,-480.0,0.00047397,120]
[387858116,1758930709989,-1076.06,0.00047397,120]
[387858117,1758930709999,-480.0,0.00047397,120]
[387858118,1758930710009,-3296.42,0.00047397,120]
[387858119,1758930710018,-480.0,0.00047397,120]
[387858120,1758930710028,-480.0,0.00047397,120]
[387858121,1758930710038,-480.0,0.00047397,120]
[387858122,1758930710048,-521.35219819,0.00047397,120]
[387858123,1758930710058,-480.0,0.00047397,120]
[387858124,1758930710067,-480.0,0.00047397,120]
[387858125,1758930710076,-480.0,0.00047397,120]
[387858126,1758930710086,-1000000.0,0.0004744,7]
[387858127,1758930710096,-5000.0,0.000475,120]
[387858128,1758930710105,-5000.0,0.00047566,111]
[387858129,1758930710114,-219.1,0.00047631,120]
[387858130,1758930710124,-118382.74,0.00047645,14]
[387858131,1758930710134,-17338.38,0.00047645,14]
[387858132,1758930710143,-164.743299,0.00047658,2]
[387858133,1758930710152,-480.0,0.00047671,120]
[387858134,1758930710161,-589.43,0.00047671,120]
[387858135,1758930710171,-580.96,0.00047671,120]
[387858136,1758930710180,-480.0,0.00047671,120]
[387858137,1758930710190,-480.0,0.00047671,120]
[387858138,1758930710199,-480.0,0.00047671,120]
[387858139,1758930710208,-480.0,0.00047671,120]
[387858140,1758930710219,-480.0,0.00047671,120]
[387858141,1758930710228,-480.0,0.00047671,120]
[387858142,1758930710238,-480.0,0.00047671,120]
[387858143,1758930710247,-480.0,0.00047671,120]
[387858144,1758930710257,-584.58265776,0.00047671,120]
[387858145,1758930710266,-480.0,0.00047671,120]
[387858146,1758930710275,-480.0,0.00047671,120]
[387858147,1758930710284,-480.0,0.00047671,120]
[387858148,1758930710294,-480.0,0.00047671,120]
[387858149,1758930710303,-960.56814494,0.00047671,120]
[387858150,1758930710700,-125.40185506,0.00047671,120]
[387858151,1758930710710,-480.0,0.00047671,120]
[387858152,1758930710720,-358.84680787,0.00047671,120]
[387858153,1758930711693,-121.15319213,0.00047671,120]
[387858154,1758930711702,-480.0,0.00047671,120]
[387858155,1758930711713,-151.76261953,0.00047671,120]
[387858156,1758930711723,-480.0,0.00047671,120]
[387858157,1758930711733,-480.0,0.00047671,120]
[387858158,1758930711742,-485.76684525,0.00047671,120]
[387858159,1758930711752,-490.69790473,0.00047671,120]
[387858160,1758930711762,-480.0,0.00047671,120]
[387858161,1758930711771,-300.17,0.00047671,120]
[387858162,1758930711781,-242.22232748,0.00047671,120]
[387858163,1758930711790,-480.0,0.00047671,120]
[387858164,1758930711800,-480.0,0.00047671,120]
[387858165,1758930711809,-480.0,0.00047671,120]
[387858166,1758930711818,-480.0,0.00047671,120]
[387858167,1758930711828,-490.47,0.00047671,120]
[387858168,1758930711837,-480.0,0.00047671,120]
[387858169,1758930711846,-480.0,0.00047671,120]
[387858170,1758930711855,-609.96411898,0.00047671,120]
[387858171,1758930711865,-480.0,0.00047671,120]
[387858172,1758930711874,-491.75444976,0.00047671,120]
[387858173,1758930711883,-480.0,0.00047671,120]
[387858174,1758930711892,-480.0,0.00047671,120]
[387858175,1758930711902,-480.0,0.00047671,120]
[387858176,1758930711911,-480.0,0.00047671,120]
[387858177,1758930711921,-480.0,0.00047671,120]
[387858178,1758930711931,-480.0,0.00047671,120]
[387858179,1758930711942,-480.0,0.00047671,120]
[387858180,1758930711952,-480.0,0.00047671,120]
[387858181,1758930711961,-480.0,0.00047671,120]
[387858182,1758930711971,-1480.61,0.00047671,120]
[387858183,1758930711980,-549.86,0.00047671,120]
[387858184,1758930711990,-480.0,0.00047671,120]
[387858185,1758930711999,-480.0,0.00047671,120]
[387858186,1758930712008,-480.0,0.00047671,120]
[387858187,1758930712018,-480.0,0.00047671,120]
[387858188,1758930712027,-500.0,0.00047671,14]
[387858189,1758930712037,-480.0,0.00047671,120]
[387858190,1758930712046,-107.97600914,0.00047671,120]
[387858191,1758930712059,-372.02399086,0.00047671,120]
[387858192,1758930712069,-480.0,0.00047671,120]
[387858193,1758930712078,-480.0,0.00047671,120]
[387858194,1758930712087,-519.62,0.00047671,120]
[387858195,1758930712097,-1520.5,0.00047671,120]
[387858196,1758930712106,-609.63,0.00047671,120]
[387858197,1758930712116,-480.0,0.00047671,120]
[387858198,1758930712125,-480.0,0.00047671,120]
[387858199,1758930712135,-480.0,0.00047671,120]
[387858200,1758930712145,-480.0,0.00047671,120]
[387858201,1758930712156,-480.0,0.00047671,120]
[387858202,1758930712166,-480.0,0.00047671,120]
[387858203,1758930712175,-480.0,0.00047671,120]
[387858204,1758930712186,-480.0,0.00047671,120]
[387858205,1758930712195,-738.9983677,0.00047671,120]
[387858206,1758930712278,-92.3916323,0.00047671,120]
[387858207,1758930712287,-600.73929817,0.00047671,120]
[387858208,1758930713054,-1000.0,0.00031271,30]
[387858209,1758930713063,-410.0,0.00035219,2]
[387858210,1758930713073,-500.0,0.0003553,2]
[387858211,1758930713082,-500.0,0.0003553,2]
[387858212,1758930713091,-79.251552,0.0003553,2]
[387858229,1758931109534,1668.6189114,0.00025205,2]
[387858230,1758931134100,355.48332623,0.00025205,2]
[387858231,1758931204125,500.0,0.00025205,2]
[387858232,1758931204596,500.0,0.00025205,2]
[387858234,1758931224517,-236.72565056,0.00025205,2]
[387858235,1758931234674,160.0,0.00025205,2]
[387858236,1758931244196,199.99,0.00025205,2]
[387858261,1758931281632,161.0,0.00022932,8]
[387858262,1758931317074,192.525954,0.00025205,2]
[387858263,1758931325546,238.0,0.00025,2]
[387858283,1758931594819,164.0,0.00022959,8]
[387858284,1758931596103,-295.3390015,0.00030477,2]
[387858285,1758931596123,-177.59204326,0.00030756,2]
[387858286,1758931596143,-207.61583502,0.00030856,2]
[387858287,1758931751112,-366.90738498,0.00030856,2]
[387858288,1758931751135,-400.0,0.00031961,2]
[387858289,1758931751157,-2117.99780583,0.00031962,2]
[387858290,1758931751179,-3804.02318521,0.00031962,2]
[387858294,1758931832032,-371.50011356,0.00031962,2]
[387858295,1758931832042,-1694.39824464,0.00031973,2]
[387858296,1758931832052,-7371.0086937,0.00031973,2]
[387858298,1758931832063,-155.60943974,0.00032048,2]
[387858300,1758931832073,-2926.4250526,0.00032049,2]
[387858302,1758931832083,-310.0,0.0003205,2]
[387858304,1758931832093,-302.016,0.0003205,31]
[387858306,1758931832104,-400.0,0.00032057,2]
[387858308,1758931832114,-3029.7,0.00032058,6]
[387858310,1758931832124,-500.0,0.00032059,10]
[387858312,1758931832134,-27935.29909411,0.00032059,2]
[387858314,1758931832146,-973.57,0.00032059,2]
[387858317,1758931832162,-2207.99451736,0.00032059,2]
[387858318,1758931832174,-801.15340946,0.00032059,2]
[387858319,1758931832186,-12974.47859611,0.00032059,2]
[387858326,1758931838012,-325107.50438296,0.00032059,2]
[387858327,1758931838022,-419.00334178,0.00032073,5]
[387858328,1758931838031,-500.0,0.00032073,5]
[387858329,1758931838040,-500.0,0.00032073,5]
[387858330,1758931838050,-500.0,0.00032073,2]
[387858331,1758931838059,-480.0,0.0003216,120]
[387858332,1758931838068,-600.0,0.00032699,20]
[387858333,1758931838078,-232.0,0.00032802,120]
[387858334,1758931838087,-675.573749,0.00032877,2]
[387858335,1758931838096,-160.0,0.00033959,2]
[387858336,1758931838105,-233.71402077,0.00033959,2]
[387858337,1758931838115,-160.0,0.00033959,2]
[387858338,1758931838124,-160.0,0.00033959,2]
[387858339,1758931838133,-560.0,0.00034477,2]
[387858340,1758931838142,-307.26,0.0003516,7]
[387858341,1758931838152,-371.50011352,0.00035249,2]
[387858342,1758931838161,-1694.39824463,0.00035599,2]
[387858343,1758931838171,-164.7433,0.0003577,2]
[387858344,1758931838180,-720.0,0.00035969,20]
[387858345,1758931838189,-2154.0,0.00036523,2]
[387858346,1758931838198,-227.233,0.00036703,2]
[387858347,1758931838207,-250.0,0.00036703,2]
[387858348,1758931838217,-262.985,0.00036747,2]
[387858349,1758931838226,-295.0,0.00036747,2]
[387858350,1758931838235,-292.566,0.00036747,2]
[387858351,1758931838244,-153.0,0.00036821,30]
[387858352,1758931838253,-153.0,0.00036821,30]